{"text_format":"3","workbook":"xlsx","n_sheets":1,"sheets":["Proposta"],"not_rendered":{"images":1,"defined_names":20},"read":"whole","date_system":"1900"}

{"sheet":"Proposta","index":0,"n_rows":39,"n_cols":7,"rows_kept":39,"merged":[[0,1,3,1],[0,3,0,6],[1,4,1,6],[2,4,2,6],[32,3,35,4],[36,3,36,6],[37,3,37,5],[38,3,38,5]]}
[{"$nulls":3},"PROPOSTA DE CONSTRUÇÃO"]
[{"$nulls":3},"Nome da Empresa","| Introduza o endereço da empresa nesta célula"]
[{"$nulls":3},"Telefone","| Introduza o número de fax e endereço de e-mail de contacto da empresa nesta célula"]
[{"$nulls":3},"QUANTIDADE","DESCRIÇÃO","PREÇO UNITÁRIO","MONTANTE"]
[null,"CLIENTE",null,10,"Item 1",{"v":165,"d":"165.00 €"},{"$f":"IFERROR(ItensDeLinha[[#This Row],[QUANTIDADE]]*ItensDeLinha[[#This Row],[PREÇO UNITÁRIO]], \"\")","v":{"v":1650,"d":"1,650.00 €"}}]
[null,"Introduza o Nome do Cliente nesta célula",null,21,"Item 2",{"v":40,"d":"40.00 €"},{"$f":"IFERROR(ItensDeLinha[[#This Row],[QUANTIDADE]]*ItensDeLinha[[#This Row],[PREÇO UNITÁRIO]], \"\")","v":{"v":840,"d":"840.00 €"}}]
[null,"N.º DO ORÇAMENTO",null,5,"Item 3",{"v":10.5,"d":"10.50 €"},{"$f":"IFERROR(ItensDeLinha[[#This Row],[QUANTIDADE]]*ItensDeLinha[[#This Row],[PREÇO UNITÁRIO]], \"\")","v":{"v":52.5,"d":"52.50 €"}}]
[null,"C-1234",null,164,"Item 4",{"v":2.75,"d":"2.75 €"},{"$f":"IFERROR(ItensDeLinha[[#This Row],[QUANTIDADE]]*ItensDeLinha[[#This Row],[PREÇO UNITÁRIO]], \"\")","v":{"v":451,"d":"451.00 €"}}]
[null,"DATA",null,6,"Item 5",{"v":12,"d":"12.00 €"},{"$f":"IFERROR(ItensDeLinha[[#This Row],[QUANTIDADE]]*ItensDeLinha[[#This Row],[PREÇO UNITÁRIO]], \"\")","v":{"v":72,"d":"72.00 €"}}]
[null,{"$f":"TODAY()","v":"2018-11-16"},null,18,"Item 6",{"v":5.5,"d":"5.50 €"},{"$f":"IFERROR(ItensDeLinha[[#This Row],[QUANTIDADE]]*ItensDeLinha[[#This Row],[PREÇO UNITÁRIO]], \"\")","v":{"v":99,"d":"99.00 €"}}]
[null,"ENDEREÇO",null,1,"Item 7",{"v":25,"d":"25.00 €"},{"$f":"IFERROR(ItensDeLinha[[#This Row],[QUANTIDADE]]*ItensDeLinha[[#This Row],[PREÇO UNITÁRIO]], \"\")","v":{"v":25,"d":"25.00 €"}}]
[null,"Introduza o Endereço do Cliente nesta célula",{"$nulls":4},{"$f":"IFERROR(ItensDeLinha[[#This Row],[QUANTIDADE]]*ItensDeLinha[[#This Row],[PREÇO UNITÁRIO]], \"\")","v":{"v":0,"d":"0.00 €"}}]
[null,"CÓDIGO POSTAL/LOCALIDADE",{"$nulls":4},{"$f":"IFERROR(ItensDeLinha[[#This Row],[QUANTIDADE]]*ItensDeLinha[[#This Row],[PREÇO UNITÁRIO]], \"\")","v":{"v":0,"d":"0.00 €"}}]
[null,"Introduza o Código Postal e a Localidade do Cliente nesta célula",{"$nulls":4},{"$f":"IFERROR(ItensDeLinha[[#This Row],[QUANTIDADE]]*ItensDeLinha[[#This Row],[PREÇO UNITÁRIO]], \"\")","v":{"v":0,"d":"0.00 €"}}]
[null,"TELEFONE",{"$nulls":4},{"$f":"IFERROR(ItensDeLinha[[#This Row],[QUANTIDADE]]*ItensDeLinha[[#This Row],[PREÇO UNITÁRIO]], \"\")","v":{"v":0,"d":"0.00 €"}}]
[null,"Introduza o número de Telefone do Cliente nesta célula",{"$nulls":4},{"$f":"IFERROR(ItensDeLinha[[#This Row],[QUANTIDADE]]*ItensDeLinha[[#This Row],[PREÇO UNITÁRIO]], \"\")","v":{"v":0,"d":"0.00 €"}}]
[null,"E-MAIL",{"$nulls":4},{"$f":"IFERROR(ItensDeLinha[[#This Row],[QUANTIDADE]]*ItensDeLinha[[#This Row],[PREÇO UNITÁRIO]], \"\")","v":{"v":0,"d":"0.00 €"}}]
[null,"Introduza o endereço de E-mail do Cliente nesta célula",{"$nulls":4},{"$f":"IFERROR(ItensDeLinha[[#This Row],[QUANTIDADE]]*ItensDeLinha[[#This Row],[PREÇO UNITÁRIO]], \"\")","v":{"v":0,"d":"0.00 €"}}]
[null,"VENDEDOR",{"$nulls":4},{"$f":"IFERROR(ItensDeLinha[[#This Row],[QUANTIDADE]]*ItensDeLinha[[#This Row],[PREÇO UNITÁRIO]], \"\")","v":{"v":0,"d":"0.00 €"}}]
[null,"Introduza o nome do Vendedor nesta célula",{"$nulls":4},{"$f":"IFERROR(ItensDeLinha[[#This Row],[QUANTIDADE]]*ItensDeLinha[[#This Row],[PREÇO UNITÁRIO]], \"\")","v":{"v":0,"d":"0.00 €"}}]
[null,"PROJETO",{"$nulls":4},{"$f":"IFERROR(ItensDeLinha[[#This Row],[QUANTIDADE]]*ItensDeLinha[[#This Row],[PREÇO UNITÁRIO]], \"\")","v":{"v":0,"d":"0.00 €"}}]
[null,"Introduza o nome do Projeto nesta célula",{"$nulls":4},{"$f":"IFERROR(ItensDeLinha[[#This Row],[QUANTIDADE]]*ItensDeLinha[[#This Row],[PREÇO UNITÁRIO]], \"\")","v":{"v":0,"d":"0.00 €"}}]
[null,"ELABORADO POR:",{"$nulls":4},{"$f":"IFERROR(ItensDeLinha[[#This Row],[QUANTIDADE]]*ItensDeLinha[[#This Row],[PREÇO UNITÁRIO]], \"\")","v":{"v":0,"d":"0.00 €"}}]
[null,"Introduza o nome do Preparador nesta célula",{"$nulls":4},{"$f":"IFERROR(ItensDeLinha[[#This Row],[QUANTIDADE]]*ItensDeLinha[[#This Row],[PREÇO UNITÁRIO]], \"\")","v":{"v":0,"d":"0.00 €"}}]
[null,"À ATENÇÃO DE",{"$nulls":4},{"$f":"IFERROR(ItensDeLinha[[#This Row],[QUANTIDADE]]*ItensDeLinha[[#This Row],[PREÇO UNITÁRIO]], \"\")","v":{"v":0,"d":"0.00 €"}}]
[null,"Introduza o nome da pessoa a quem a proposta deve ser dirigida",{"$nulls":4},{"$f":"IFERROR(ItensDeLinha[[#This Row],[QUANTIDADE]]*ItensDeLinha[[#This Row],[PREÇO UNITÁRIO]], \"\")","v":{"v":0,"d":"0.00 €"}}]
[null,"TERMOS DE PAGAMENTO",{"$nulls":4},{"$f":"IFERROR(ItensDeLinha[[#This Row],[QUANTIDADE]]*ItensDeLinha[[#This Row],[PREÇO UNITÁRIO]], \"\")","v":{"v":0,"d":"0.00 €"}}]
[null,"Pagamento líquido em 30 dias",{"$nulls":4},{"$f":"IFERROR(ItensDeLinha[[#This Row],[QUANTIDADE]]*ItensDeLinha[[#This Row],[PREÇO UNITÁRIO]], \"\")","v":{"v":0,"d":"0.00 €"}}]
[null,"DATA DE VENCIMENTO",{"$nulls":4},{"$f":"IFERROR(ItensDeLinha[[#This Row],[QUANTIDADE]]*ItensDeLinha[[#This Row],[PREÇO UNITÁRIO]], \"\")","v":{"v":0,"d":"0.00 €"}}]
[null,{"$f":"TODAY()+30","v":"2018-12-16"},{"$nulls":4},{"$f":"IFERROR(ItensDeLinha[[#This Row],[QUANTIDADE]]*ItensDeLinha[[#This Row],[PREÇO UNITÁRIO]], \"\")","v":{"v":0,"d":"0.00 €"}}]
[{"$nulls":5},"SUBTOTAL",{"$f":"SUBTOTAL(109,ItensDeLinha[MONTANTE])","v":{"v":3189.5,"d":"3,189.50 €"}}]
[{"$nulls":3},"ESTA PROPOSTA INCLUI AS SEGUINTES CONDIÇÕES:",null,"TAXA DE IMPOSTO ",{"v":0.0775,"d":"7.75%"}]
[{"$nulls":3},"Introduza as condições aqui",null,"IMPOSTO DE VENDA ",{"$f":"IFERROR(Subtotal*TaxaDoImposto, \"\")","v":{"v":247.18625,"d":"247.19 €"}}]
[{"$nulls":5},"OUTRO "]
[{"$nulls":5},"TOTAL ",{"$f":"IFERROR(Subtotal+G33+Outro, \"\")","v":{"v":3436.68625,"d":"3,436.69 €"}}]
[]
[{"$nulls":3},"Assine Abaixo para Aceitar a Proposta:"]
[]
[{"$nulls":3},"Representante Autorizado",null,null,"Data"]